[Event "Hasselbacken Open 2018"]
[Site "Stockholm"]
[Date "2018.11.02"]
[Round "3"]
[White "Wahlund, Max"]
[Black "Ingbrandt, Johan"]
[Result "0-1"]
[ECO "D27"]
[WhiteElo "2126"]
[BlackElo "2364"]
[Annotator "ChessBase"]
[PlyCount "100"]
[EventDate "2018.11.02"]
[EventCountry "SWE"]
[SourceTitle "playchess.com"]
[Source "ChessBase"]
[SourceQuality "1"]
[TimeControl "900+5"]

1. d4 {[%emt 0:00:00]} d5 {[%emt 0:00:00]} 2. c4 {[%emt 0:00:03]} dxc4 {[%emt 0:00:01]} 3. Nf3 {[%emt 0:00:15]} Nf6 {[%emt 0:00:03]} 4. e3 {[%emt 0:00:04]} e6 {[%emt 0:00:03]} 5. Bxc4 {[%emt 0:00:04]} c5 {[%emt 0:00:03]} 6. O-O {[%emt 0:00:51]} a6 {[%emt 0:00:02]} 7. dxc5 {[%emt 0:00:16]} Bxc5 {[%emt 0:00:05]} 8. Qxd8+ {[%emt 0:00:04]} Kxd8 {[%emt 0:00:03]} 9. Nbd2 {[%emt 0:01:08]} Ke7 {[%emt 0:00:22]} 10. Nb3 {[%emt 0:00:06]} Bb6 {[%emt 0:01:25]} 11. Bd2 {[%emt 0:00:04]} Nc6 {[%emt 0:00:24]} 12. Rfd1 {[%emt 0:00:22]} Bd7 {[%emt 0:00:51]} 13. Bc3 {[%emt 0:00:32]} Rac8 {[%emt 0:02:39]} 14. Be2 {[%emt 0:00:51]} Rhg8 {[%emt 0:00:31]} 15. Ne5 {[%emt 0:01:31]} Nxe5 {[%emt 0:01:53]} 16. Bxe5 {[%emt 0:00:04]} Ne4 {[%emt 0:01:51]} 17. Bf3 {[%emt 0:00:16]} Bc6 {[%emt 0:00:16]} 18. Rac1 {[%emt 0:00:31]} f6 {[%emt 0:00:15]} 19. Bd4 {[%emt 0:04:07]} Bxd4 {[%emt 0:00:05]} 20. Rxd4 {[%emt 0:00:37]} Bd5 {[%emt 0:02:12]} 21. Rcd1 {[%emt 0:00:40]} f5 {[%emt 0:00:01]} 22. Bxe4 {[%emt 0:00:29]} fxe4 {[%emt 0:00:25]} 23. Rb4 {[%emt 0:00:16]} Rc7 {[%emt 0:00:39]} 24. Nd4 {[%emt 0:00:07]} Rgc8 {[%emt 0:00:09]} 25. g4 {[%emt 0:00:25]} Rc1 {[%emt 0:00:06]} 26. Rxc1 {[%emt 0:00:08]} Rxc1+ {[%emt 0:00:01]} 27. Kg2 {[%emt 0:00:01]} Kd6 {[%emt 0:00:38]} 28. a3 {[%emt 0:00:13]} b5 {[%emt 0:00:19]} 29. Ne2 {[%emt 0:00:14]} Rc5 {[%emt 0:00:55]} 30. Nc3 {[%emt 0:00:27]} Bc6 {[%emt 0:00:07]} 31. Nxe4+ {[%emt 0:00:24]} Kc7 {[%emt 0:00:29]} 32. Kg3 {[%emt 0:00:08]} Rc1 {[%emt 0:00:05]} 33. Ng5 {[%emt 0:00:39]} Kd6 {[%emt 0:00:18]} 34. Nxh7 {[%emt 0:00:10]} Rg1+ {[%emt 0:00:04]} 35. Kf4 {[%emt 0:00:11]} e5+ {[%emt 0:00:02]} 36. Kg5 {[%emt 0:00:07]} Rg2 {[%emt 0:00:06]} 37. f4 {[%emt 0:00:10]} e4 {[%emt 0:00:06]} 38. h4 {[%emt 0:00:32]} Bd5 {[%emt 0:00:11]} 39. Nf8 {[%emt 0:00:07]} Bc4 {[%emt 0:00:06]} 40. Ng6 {[%emt 0:00:11]} a5 {[%emt 0:00:01]} 41. Rxc4 {[%emt 0:00:14]} bxc4 {[%emt 0:00:01]} 42. h5 {[%emt 0:00:06]} Rxb2 {[%emt 0:00:01]} 43. Ne5 {[%emt 0:00:08]} c3 {[%emt 0:00:05]} 44. Nc4+ {[%emt 0:00:19]} Ke7 {[%emt 0:00:01]} 45. Nxb2 {[%emt 0:00:01]} cxb2 {[%emt 0:00:01]} 46. h6 {[%emt 0:00:05]} gxh6+ {[%emt 0:00:01]} 47. Kxh6 {[%emt 0:00:01]} b1=Q {[%emt 0:00:01]} 48. g5 {[%emt 0:00:00]} Qh1+ {[%emt 0:00:02]} 49. Kg7 {[%emt 0:00:01]} Qh5 {[%emt 0:00:04]} 50. g6 {[%emt 0:00:02]} Ke6 {[%emt 0:00:02]} 0-1

[Event "Hasselbacken Open 2018"]
[Site "Stockholm"]
[Date "2018.11.04"]
[Round "7"]
[White "Lindberg, Bengt"]
[Black "Holst, Conny"]
[Result "1-0"]
[ECO "B63"]
[WhiteElo "2401"]
[BlackElo "2195"]
[Annotator "NA"]
[PlyCount "129"]
[EventDate "2018.11.02"]
[EventCountry "SWE"]
[SourceTitle "playchess.com"]
[Source "ChessBase"]
[SourceQuality "1"]
[TimeControl "5400+30"]

1. e4 {[%emt 0:00:00]} c5 {[%emt 0:00:00]} 2. Nf3 {[%emt 0:00:00]} d6 {[%emt 0:00:00]} 3. d4 {[%emt 0:00:00]} cxd4 {[%emt 0:00:03]} 4. Nxd4 {[%emt 0:00:00]} Nf6 {[%emt 0:00:08]} 5. Nc3 {[%emt 0:00:00]} Nc6 {[%emt 0:00:08]} 6. Bg5 {[%emt 0:00:00]} e6 {[%emt 0:00:15]} 7. Qd2 {[%emt 0:00:05]} Be7 {[%emt 0:00:41]} 8. O-O-O {[%emt 0:00:10]} O-O {[%emt 0:01:34]} 9. f3 {[%emt 0:02:36]} Nxd4 {[%emt 0:13:44]} 10. Qxd4 {[%emt 0:01:16]} a6 {[%emt 0:00:47]} 11. h4 {[%emt 0:07:22]} Qc7 {[%emt 0:03:57]} 12. g4 {[%emt 0:04:07]} b5 $1 {[%emt 0:04:27] LiveBook: 7 Games} 13. h5 {[%emt 0:15:43]} b4 {[%emt 0:08:24]} 14. Qxb4 {[%emt 0:13:49]} d5 {[%emt 0:02:26]} 15. Qd4 {[%emt 0:01:07]} h6 $14 {[%emt 0:05:37]} 16. exd5 {[%emt 0:14:59]} Bc5 {[%emt 0:08:37]} 17. Bf4 {[%emt 0:00:11]} Bxd4 {[%emt 0:00:21]} 18. Bxc7 {[%emt 0:00:05]} Bxc3 {[%emt 0:01:03]} 19. bxc3 {[%emt 0:00:39]} Nxd5 {[%emt 0:00:40]} 20. Bd6 {[%emt 0:00:16]} Rd8 {[%emt 0:10:02]} 21. Bg3 {[%emt 0:00:18]} Bb7 {[%emt 0:00:36]} 22. Rd3 {[%emt 0:00:11]} Rdc8 {[%emt 0:02:09]} 23. c4 {[%emt 0:22:11]} Rxc4 {[%emt 0:06:26]} 24. Rb3 {[%emt 0:00:05]} Rb4 {[%emt 0:00:20]} 25. Bd3 {[%emt 0:00:05]} Rxb3 {[%emt 0:06:13]} 26. axb3 {[%emt 0:00:10]} Nf6 {[%emt 0:00:11]} 27. Rf1 {[%emt 0:00:26]} a5 {[%emt 0:02:04]} 28. Kd2 {[%emt 0:01:57]} Nd5 {[%emt 0:08:36]} 29. c4 {[%emt 0:02:19]} Nb4 {[%emt 0:00:46]} 30. Bb1 {[%emt 0:00:07]} Rd8+ {[%emt 0:02:13]} 31. Kc3 {[%emt 0:00:09]} Rd7 {[%emt 0:00:22]} 32. Bf4 {[%emt 0:00:59]} f6 {[%emt 0:03:27]} 33. Be3 {[%emt 0:01:42]} Rc7 {[%emt 0:01:13]} 34. Kb2 {[%emt 0:02:11]} Rd7 {[%emt 0:02:06]} 35. Ka3 {[%emt 0:02:53]} Bc6 {[%emt 0:05:10]} 36. Bb6 {[%emt 0:01:07]} Rd2 {[%emt 0:00:14]} 37. Bxa5 {[%emt 0:05:39]} Nc2+ {[%emt 0:00:07]} 38. Bxc2 {[%emt 0:01:38]} Rxc2 {[%emt 0:00:07]} 39. Kb4 {[%emt 0:00:05]} e5 {[%emt 0:01:28]} 40. Kc5 {[%emt 0:00:13]} Be8 {[%emt 0:00:42]} 41. Rd1 {[%emt 0:01:14]} Kf8 {[%emt 0:01:49]} 42. Bb4 {[%emt 0:01:25]} Kf7 {[%emt 0:00:46]} 43. Rd3 {[%emt 0:00:44]} g6 {[%emt 0:00:46]} 44. hxg6+ {[%emt 0:00:49]} Kxg6 {[%emt 0:00:06]} 45. Bc3 {[%emt 0:00:08]} Kg5 {[%emt 0:00:19]} 46. b4 {[%emt 0:00:32]} Bg6 {[%emt 0:00:24]} 47. Bd2+ {[%emt 0:00:48]} Kh4 {[%emt 0:00:16]} 48. Be1+ {[%emt 0:00:08]} Kh3 {[%emt 0:01:10]} 49. Rc3 {[%emt 0:00:56]} Re2 {[%emt 0:00:36]} 50. Rc1 {[%emt 0:00:01]} Kg2 {[%emt 0:00:38]} 51. b5 {[%emt 0:00:07]} Kxf3 {[%emt 0:00:16]} 52. Bh4 {[%emt 0:00:45]} f5 {[%emt 0:00:36]} 53. gxf5 {[%emt 0:00:14]} Bxf5 {[%emt 0:00:05]} 54. Kd6 {[%emt 0:01:12]} e4 {[%emt 0:00:57]} 55. c5 {[%emt 0:00:12]} e3 {[%emt 0:00:36]} 56. b6 {[%emt 0:00:36]} Rb2 {[%emt 0:00:34]} 57. Kc7 {[%emt 0:00:14]} Be4 {[%emt 0:00:39]} 58. c6 {[%emt 0:00:11]} Kg4 {[%emt 0:00:15]} 59. Rc4 {[%emt 0:00:57]} Kf5 {[%emt 0:00:44]} 60. b7 {[%emt 0:00:16]} Bd5 {[%emt 0:00:26]} 61. Rc1 {[%emt 0:00:35]} Kg4 {[%emt 0:00:14]} 62. Be1 {[%emt 0:00:12]} h5 {[%emt 0:00:42]} 63. b8=Q {[%emt 0:00:38]} Rxb8 {[%emt 0:00:21]} 64. Kxb8 {[%emt 0:00:07]} h4 {[%emt 0:00:06]} 65. c7 {[%emt 0:00:19]} 1-0

[Event "Hasselbacken Open 2018"]
[Site "Stockholm"]
[Date "2018.11.04"]
[Round "7"]
[White "Lindgren, Philip"]
[Black "Seo, Jung Min"]
[Result "1/2-1/2"]
[ECO "D97"]
[WhiteElo "2374"]
[BlackElo "2369"]
[Annotator "NA"]
[PlyCount "118"]
[EventDate "2018.11.02"]
[EventCountry "SWE"]
[SourceTitle "playchess.com"]
[Source "ChessBase"]
[SourceQuality "1"]
[TimeControl "5400+30"]

1. d4 {[%emt 0:00:00]} Nf6 {[%emt 0:00:00]} 2. c4 {[%emt 0:00:18]} g6 {[%emt 0:00:00]} 3. Nf3 {[%emt 0:00:36]} Bg7 {[%emt 0:00:00]} 4. Nc3 {[%emt 0:01:03]} d5 {[%emt 0:00:12]} 5. Qb3 {[%emt 0:03:48]} dxc4 {[%emt 0:01:38]} 6. Qxc4 {[%emt 0:00:09]} O-O {[%emt 0:00:20]} 7. e4 {[%emt 0:00:51] LiveBook: 2950 Games} Nfd7 {[%emt 0:02:13]} 8. Be3 {[%emt 0:04:49]} Nb6 {[%emt 0:00:57]} 9. Qb3 {[%emt 0:02:23]} Be6 {[%emt 0:07:30]} 10. d5 {[%emt 0:05:30]} Bg4 {[%emt 0:00:25]} 11. Rd1 {[%emt 0:08:01]} N8d7 {[%emt 0:03:22]} 12. Be2 $14 {[%emt 0:03:58]} c6 {[%emt 0:11:56]} 13. h3 {[%emt 0:04:41]} Bxf3 {[%emt 0:00:29]} 14. Bxf3 {[%emt 0:00:52]} Qc7 {[%emt 0:03:16]} 15. O-O {[%emt 0:04:19]} Be5 {[%emt 0:29:52]} 16. dxc6 {[%emt 0:07:42]} bxc6 {[%emt 0:00:37]} 17. Ne2 {[%emt 0:18:37]} Bg7 {[%emt 0:06:08]} 18. Nd4 {[%emt 0:05:48]} e5 {[%emt 0:04:28]} 19. Ne2 {[%emt 0:02:05]} Rfd8 {[%emt 0:00:37]} 20. Rc1 {[%emt 0:04:21]} Nf8 {[%emt 0:02:47]} 21. Nc3 {[%emt 0:00:56]} Rab8 {[%emt 0:00:19]} 22. Rfd1 {[%emt 0:05:19]} Rxd1+ {[%emt 0:01:49]} 23. Bxd1 {[%emt 0:01:28]} Ne6 {[%emt 0:02:12]} 24. Be2 {[%emt 0:06:14]} Qd8 {[%emt 0:08:45]} 25. Qd1 {[%emt 0:00:58]} Nd4 {[%emt 0:03:37]} 26. b3 {[%emt 0:01:08]} Qd6 {[%emt 0:01:01]} 27. Nb1 {[%emt 0:01:12]} Rd8 {[%emt 0:00:48]} 28. Bf1 {[%emt 0:01:54]} h5 {[%emt 0:00:59]} 29. Nd2 {[%emt 0:01:05]} Qa3 {[%emt 0:01:52]} 30. Ra1 {[%emt 0:00:56]} Kh7 {[%emt 0:00:35]} 31. Qc1 {[%emt 0:00:55]} Qd6 {[%emt 0:01:37]} 32. Nc4 {[%emt 0:00:28]} Qe6 {[%emt 0:00:53]} 33. Na5 {[%emt 0:01:13]} Rc8 {[%emt 0:01:11]} 34. Qc5 {[%emt 0:00:40]} Bf8 {[%emt 0:00:58]} 35. Qc3 {[%emt 0:00:19]} Bg7 {[%emt 0:01:50]} 36. Rc1 {[%emt 0:00:20]} c5 {[%emt 0:00:30]} 37. Nc4 {[%emt 0:02:33]} Qe7 {[%emt 0:00:53]} 38. Qa5 {[%emt 0:00:28]} Qc7 {[%emt 0:01:01]} 39. Qa6 {[%emt 0:00:41]} Re8 {[%emt 0:00:55]} 40. Nxb6 {[%emt 0:00:33]} axb6 {[%emt 0:00:08]} 41. b4 {[%emt 0:00:30]} Bf8 {[%emt 0:00:39]} 42. a4 {[%emt 0:00:19]} Re6 {[%emt 0:01:04]} 43. Bc4 {[%emt 0:00:33]} Rd6 {[%emt 0:00:20]} 44. b5 {[%emt 0:00:44]} Rd8 {[%emt 0:00:32]} 45. Kf1 {[%emt 0:00:29]} Rb8 {[%emt 0:00:13]} 46. Bd5 {[%emt 0:00:31]} Bd6 {[%emt 0:00:57]} 47. Rc3 {[%emt 0:00:37]} Kg7 {[%emt 0:00:13]} 48. Bd2 {[%emt 0:00:21]} Rd8 {[%emt 0:00:34]} 49. Rc1 {[%emt 0:00:35]} Kh7 {[%emt 0:00:15]} 50. a5 {[%emt 0:00:06]} Rb8 {[%emt 0:00:17]} 51. axb6 {[%emt 0:00:15]} Rxb6 {[%emt 0:00:29]} 52. Ba5 {[%emt 0:01:17]} Rxa6 {[%emt 0:00:03]} 53. Bxc7 {[%emt 0:00:05]} Nxb5 {[%emt 0:00:02]} 54. Bxd6 {[%emt 0:00:24]} Nxd6 {[%emt 0:00:08]} 55. Rxc5 {[%emt 0:00:07]} Ra7 {[%emt 0:00:24]} 56. h4 {[%emt 0:00:52]} Kg7 {[%emt 0:00:19]} 57. g3 {[%emt 0:00:10]} Ne8 {[%emt 0:00:40]} 58. Bc6 {[%emt 0:00:58]} Re7 {[%emt 0:01:01]} 59. Bxe8 {[%emt 0:00:14]} Rxe8 {[%emt 0:00:01]} 1/2-1/2

[Event "Hasselbacken Open 2018"]
[Site "Stockholm"]
[Date "2018.11.04"]
[Round "7"]
[White "Ingbrandt, Johan"]
[Black "Petersson, Baldur Teodor"]
[Result "1-0"]
[ECO "A05"]
[WhiteElo "2364"]
[BlackElo "2181"]
[Annotator "NA"]
[PlyCount "63"]
[EventDate "2018.11.02"]
[EventCountry "SWE"]
[SourceTitle "playchess.com"]
[Source "ChessBase"]
[SourceQuality "1"]
[TimeControl "5400+30"]

1. Nf3 {[%emt 0:00:00]} Nf6 {[%emt 0:00:00]} 2. g3 {[%emt 0:00:00]} g6 {[%emt 0:00:07]} 3. b3 {[%emt 0:00:00]} Bg7 {[%emt 0:04:40]} 4. Bb2 {[%emt 0:00:09]} O-O {[%emt 0:00:18]} 5. Bg2 {[%emt 0:00:10]} d6 {[%emt 0:00:11]} 6. d4 {[%emt 0:00:12]} c5 {[%emt 0:00:22]} 7. O-O {[%emt 0:00:51]} Nc6 {[%emt 0:01:10]} 8. c4 {[%emt 0:02:44]} cxd4 {[%emt 0:02:18]} 9. Nxd4 {[%emt 0:03:47]} Bd7 {[%emt 0:00:26]} 10. Nc3 {[%emt 0:08:24]} Qa5 {[%emt 0:22:25] LiveBook: 169 Games} 11. Nc2 {[%emt 0:22:06]} Ng4 {[%emt 0:07:15]} 12. Qd2 {[%emt 0:04:20]} Qh5 {[%emt 0:02:20]} 13. h3 {[%emt 0:01:00]} Nf6 $14 {[%emt 0:01:03]} 14. h4 {[%emt 0:09:19]} Bh6 {[%emt 0:03:27]} 15. Ne3 {[%emt 0:03:25]} Ng4 {[%emt 0:13:08]} 16. f4 {[%emt 0:08:23]} Bg7 {[%emt 0:08:48]} 17. Nxg4 {[%emt 0:08:36]} Qxg4 {[%emt 0:00:17]} 18. Kh2 {[%emt 0:00:43]} Nd4 {[%emt 0:08:02]} 19. e3 {[%emt 0:05:42]} Nf5 {[%emt 0:01:53]} 20. Rf3 {[%emt 0:05:18]} Bc6 {[%emt 0:02:53]} 21. Nd5 {[%emt 0:01:19]} e6 {[%emt 0:00:57]} 22. Bxg7 {[%emt 0:01:26]} Kxg7 {[%emt 0:00:40]} 23. e4 {[%emt 0:02:12]} exd5 {[%emt 0:03:34]} 24. cxd5 {[%emt 0:00:59]} Bd7 {[%emt 0:00:52]} 25. exf5 {[%emt 0:01:28]} Qxf5 {[%emt 0:00:11]} 26. Rc1 {[%emt 0:00:45]} Rac8 {[%emt 0:00:39]} 27. Rfc3 {[%emt 0:00:26]} Rxc3 {[%emt 0:01:48]} 28. Rxc3 {[%emt 0:00:58]} Rc8 {[%emt 0:00:55]} 29. Rxc8 {[%emt 0:00:53]} Bxc8 {[%emt 0:00:06]} 30. Qd4+ {[%emt 0:00:32]} Qf6 {[%emt 0:02:13]} 31. Qxa7 {[%emt 0:00:15]} Qb2 {[%emt 0:00:08]} 32. Qb8 {[%emt 0:00:44]} 1-0

[Event "Hasselbacken Open 2018"]
[Site "Stockholm"]
[Date "2018.11.04"]
[Round "7"]
[White "Galinsky, Timofey"]
[Black "Nordebrink, Johan"]
[Result "1-0"]
[ECO "D04"]
[WhiteElo "2359"]
[BlackElo "2125"]
[Annotator "NA"]
[PlyCount "69"]
[EventDate "2018.11.02"]
[EventCountry "SWE"]
[SourceTitle "playchess.com"]
[Source "ChessBase"]
[SourceQuality "1"]
[TimeControl "5400+30"]

1. d4 {[%emt 0:01:32]} Nf6 {[%emt 0:00:00]} 2. Nf3 {[%emt 0:00:04]} d5 {[%emt 0:00:12]} 3. e3 {[%emt 0:00:14]} c5 {[%emt 0:00:40]} 4. c4 {[%emt 0:00:54]} cxd4 {[%emt 0:01:07]} 5. Nxd4 {[%emt 0:00:05]} e5 {[%emt 0:03:45]} 6. Nf3 {[%emt 0:00:11]} Nc6 {[%emt 0:14:51] LiveBook: 20 Games} 7. Nc3 {[%emt 0:10:23] [#] D04: Damenbauernspiele} (7. a3 $11) (7. cxd5 Qxd5 8. Nc3 Qxd1+ 9. Nxd1 e4 10. Nd2 Nb4 11. Bb5+ Bd7 12. Bxd7+ Kxd7 13. Ke2 Bd6 14. Nc3 Rhe8 {0-1 (55) Adly,A (2460)-Nisipeanu,L (2695) Turin 2006}) 7... Bb4 {[%emt 0:02:39]} (7... d4 $1 $17 {[%cal Rd4c3]} 8. Nd5 Nxd5 9. cxd5 Qxd5) 8. Bd2 {[%emt 0:02:18]} ({Better is} 8. cxd5 $15 Nxd5 9. Bd2) 8... O-O {[%emt 0:10:14]} 9. Nxd5 {[%emt 0:03:38]} Nxd5 {[%emt 0:02:47]} 10. cxd5 {[%emt 0:00:05]} Qxd5 {[%emt 0:00:48]} 11. Bxb4 {[%emt 0:00:07]} Qxd1+ {[%emt 0:00:29]} 12. Rxd1 {[%emt 0:00:07]} Nxb4 {[%emt 0:00:06]} 13. Nxe5 {[%emt 0:03:35]} Nc2+ $146 {[%emt 0:18:31]} ({Vorgänger:} 13... Nxa2 14. Bc4 Be6 15. Bxe6 fxe6 16. Rd6 {1-0 (26) Fanaskov,A (2039)-Denisov,N (2121) Kemerovo 2010}) 14. Kd2 {[%emt 0:00:35]} Nb4 {[%emt 0:00:05]} 15. Bc4 {[%emt 0:02:56]} b5 {[%emt 0:01:28]} 16. a3 {[%emt 0:05:48]} bxc4 {[%emt 0:10:00]} 17. axb4 {[%emt 0:01:41]} a5 {[%emt 0:00:16]} 18. bxa5 {[%emt 0:01:32]} Rxa5 {[%emt 0:00:10]} 19. Nxc4 {[%emt 0:00:07]} Rb5 {[%emt 0:01:14]} 20. Kc3 {[%emt 0:02:31]} Be6 {[%emt 0:00:28]} 21. b3 {[%emt 0:07:24]} Rfb8 {[%emt 0:01:24]} 22. Rb1 {[%emt 0:00:08]} Rb4 {[%emt 0:01:21]} 23. Nd2 {[%emt 0:00:09]} Bf5 {[%emt 0:01:33]} 24. Rb2 {[%emt 0:01:39]} Rg4 {[%emt 0:00:35]} 25. g3 {[%emt 0:00:36]} Rd8 {[%emt 0:00:09]} 26. Nc4 {[%emt 0:00:19]} Rd3+ {[%emt 0:03:13]} 27. Kb4 {[%emt 0:01:56]} Be6 {[%emt 0:00:31]} 28. Rc1 $18 {[%emt 0:01:59]} h5 {[%emt 0:00:21]} 29. Rcc2 {[%emt 0:03:38]} Rd8 {[%emt 0:02:11]} 30. Rd2 {[%emt 0:00:54]} Rb8+ {[%emt 0:00:07]} 31. Kc3 {[%emt 0:00:15]} Rxb3+ {[%emt 0:01:41]} 32. Rxb3 {[%emt 0:00:14]} Rxc4+ {[%emt 0:00:06]} 33. Kb2 {[%emt 0:00:04]} h4 {[%emt 0:00:37]} 34. Rb8+ {[%emt 0:00:36]} Kh7 {[%emt 0:00:07]} 35. Rd4 {[%emt 0:00:09]} 1-0

[Event "Hasselbacken Open 2018"]
[Site "Stockholm"]
[Date "2018.11.04"]
[Round "7"]
[White "Medvedyk, Volodymyr"]
[Black "Bellon Lopez, Juan Manuel"]
[Result "1/2-1/2"]
[ECO "B43"]
[WhiteElo "2303"]
[BlackElo "2337"]
[Annotator "NA"]
[PlyCount "139"]
[EventDate "2018.11.02"]
[EventCountry "SWE"]
[SourceTitle "playchess.com"]
[Source "ChessBase"]
[SourceQuality "1"]
[TimeControl "5400+30"]

1. e4 {[%emt 0:00:57]} c5 {[%emt 0:00:00]} 2. Nf3 {[%emt 0:00:19]} e6 {[%emt 0:00:00]} 3. d4 {[%emt 0:00:04]} cxd4 {[%emt 0:00:00]} 4. Nxd4 {[%emt 0:00:04]} a6 {[%emt 0:00:00]} 5. Nc3 {[%emt 0:00:12]} Qc7 {[%emt 0:00:00]} 6. Qf3 {[%emt 0:00:57]} b5 {[%emt 0:01:27]} (6... Nf6 $11 {keeps the balance.}) 7. Bf4 {[%emt 0:02:53]} d6 {[%emt 0:04:53] LiveBook: 4 Games} 8. Qg3 {[%emt 0:23:28]} ({White should play} 8. O-O-O $14) 8... Nf6 {[%emt 0:24:06]} 9. Bxb5+ {[%emt 0:09:03]} Bd7 {[%emt 0:02:48]} 10. Bxd7+ {[%emt 0:04:40]} Nbxd7 $16 {[%emt 0:00:27]} 11. Bd2 {[%emt 0:23:55]} Qb7 {[%emt 0:13:40]} 12. O-O {[%emt 0:03:25]} Be7 {[%emt 0:10:20]} 13. Qxg7 {[%emt 0:05:00]} Rg8 {[%emt 0:00:15]} 14. Qh6 {[%emt 0:00:08]} Nxe4 {[%emt 0:00:33]} 15. f3 {[%emt 0:00:54]} Rg6 {[%emt 0:03:05]} 16. Qe3 {[%emt 0:00:38]} Nxd2 {[%emt 0:00:39]} 17. Qxd2 {[%emt 0:00:09]} Qxb2 {[%emt 0:01:07]} 18. Rfb1 {[%emt 0:06:51]} Qa3 {[%emt 0:00:14]} 19. Ne4 {[%emt 0:03:02]} Nc5 {[%emt 0:01:35]} 20. Nxc5 {[%emt 0:02:28]} Qxc5 {[%emt 0:00:08]} 21. Kh1 {[%emt 0:01:25]} Rc8 {[%emt 0:03:01]} 22. Rb7 {[%emt 0:07:04]} Bf6 {[%emt 0:01:39]} 23. Rd1 {[%emt 0:03:22]} Bxd4 {[%emt 0:01:44]} 24. Qxd4 {[%emt 0:00:30]} Qxd4 {[%emt 0:00:12]} 25. Rxd4 {[%emt 0:00:04]} Rxc2 {[%emt 0:00:11]} 26. g3 {[%emt 0:00:42]} Rg5 {[%emt 0:05:15]} 27. Rxd6 {[%emt 0:00:43]} Re5 {[%emt 0:00:04]} 28. Rb1 {[%emt 0:00:32]} Rxa2 {[%emt 0:00:05]} 29. Rd4 {[%emt 0:00:29]} h5 {[%emt 0:03:07]} 30. Rdb4 {[%emt 0:00:31]} Re3 {[%emt 0:02:33]} 31. R1b2 {[%emt 0:00:29]} Raa3 {[%emt 0:04:09]} 32. Rb8+ {[%emt 0:00:29]} Ke7 {[%emt 0:00:18]} 33. f4 {[%emt 0:00:32]} h4 {[%emt 0:01:03]} 34. gxh4 {[%emt 0:00:22]} Rh3 {[%emt 0:00:31]} 35. R2b7+ {[%emt 0:00:27]} Kd6 {[%emt 0:00:18]} 36. Kg2 {[%emt 0:00:38]} Rxh4 {[%emt 0:00:14]} 37. Rxf7 {[%emt 0:00:31]} Ra2+ {[%emt 0:00:10]} 38. Kg3 {[%emt 0:00:19]} Rh6 {[%emt 0:02:34]} 39. Rd8+ {[%emt 0:00:34]} Kc6 {[%emt 0:00:14]} 40. Rc8+ {[%emt 0:00:31]} Kd5 {[%emt 0:00:51]} 41. Rd7+ {[%emt 0:00:32]} Ke4 {[%emt 0:00:05]} 42. Rc4+ {[%emt 0:00:09]} Kf5 {[%emt 0:00:15]} 43. Rc5+ {[%emt 0:00:55]} Kf6 {[%emt 0:00:22]} 44. Rcc7 {[%emt 0:00:29]} Rhxh2 {[%emt 0:01:37]} 45. Rf7+ {[%emt 0:00:10]} Kg6 {[%emt 0:00:05]} 46. Rg7+ {[%emt 0:00:23]} Kf5 {[%emt 0:00:08]} 47. Rg5+ {[%emt 0:00:59]} Kf6 {[%emt 0:00:09]} 48. Rcg7 {[%emt 0:00:31]} Rhg2+ {[%emt 0:01:59]} 49. Kf3 {[%emt 0:00:12]} Rxg5 {[%emt 0:00:23]} 50. Rxg5 {[%emt 0:00:02]} a5 {[%emt 0:00:05]} 51. Rh5 {[%emt 0:01:10]} Ra1 {[%emt 0:01:04]} 52. Ke4 {[%emt 0:00:36]} a4 {[%emt 0:01:18]} 53. Rh6+ {[%emt 0:00:20]} Kg7 {[%emt 0:00:52]} 54. Rh2 {[%emt 0:00:38]} a3 {[%emt 0:00:08]} 55. Rg2+ {[%emt 0:00:31]} Kf6 {[%emt 0:00:08]} 56. Kf3 {[%emt 0:00:24]} a2 {[%emt 0:00:28]} 57. Kg4 {[%emt 0:00:29]} Kg6 {[%emt 0:00:46]} 58. Kh4+ {[%emt 0:00:36]} Kf5 {[%emt 0:00:35]} 59. Kg3 {[%emt 0:00:10]} Ke4 {[%emt 0:00:47]} 60. Kg4 {[%emt 0:00:26]} Ke3 {[%emt 0:01:04]} 61. Kg3 {[%emt 0:00:24]} Rf1 {[%emt 0:03:20]} 62. Rxa2 {[%emt 0:00:06]} Rf3+ {[%emt 0:00:04]} 63. Kg4 {[%emt 0:01:17]} Rxf4+ {[%emt 0:00:07]} 64. Kg5 {[%emt 0:00:15]} Rf8 {[%emt 0:02:23]} 65. Ra3+ {[%emt 0:00:35]} Kd4 {[%emt 0:00:06]} 66. Ra4+ {[%emt 0:00:20]} Kd3 {[%emt 0:00:00]} 67. Ra3+ {[%emt 0:00:00]} Kc4 {[%emt 0:00:00]} 68. Ra4+ {[%emt 0:00:12]} Kb3 {[%emt 0:00:43]} 69. Re4 {[%emt 0:00:12]} Kb2 {[%emt 0:00:01]} 70. Rxe6 {[%emt 0:00:05]} 1/2-1/2

[Event "Hasselbacken Open 2018"]
[Site "Stockholm"]
[Date "2018.11.04"]
[Round "7"]
[White "Lundin, Jan"]
[Black "Crevatin, Leo"]
[Result "1/2-1/2"]
[ECO "B02"]
[WhiteElo "2293"]
[BlackElo "2130"]
[Annotator "NA"]
[PlyCount "65"]
[EventDate "2018.11.02"]
[EventCountry "SWE"]
[SourceTitle "playchess.com"]
[Source "ChessBase"]
[SourceQuality "1"]
[TimeControl "5400+30"]

1. e4 {[%emt 0:00:00]} Nf6 {[%emt 0:00:00]} 2. Nc3 {[%emt 0:01:53]} d5 {[%emt 0:00:00]} 3. e5 {[%emt 0:00:27]} d4 {[%emt 0:00:50]} 4. exf6 {[%emt 0:00:13]} dxc3 {[%emt 0:00:04]} 5. fxg7 {[%emt 0:00:19]} cxd2+ {[%emt 0:00:12]} 6. Qxd2 {[%emt 0:00:10]} Qxd2+ {[%emt 0:00:07]} 7. Bxd2 {[%emt 0:00:08]} Bxg7 {[%emt 0:00:03]} 8. O-O-O {[%emt 0:00:13]} Nc6 {[%emt 0:03:01] LiveBook: 56 Partien} 9. h4 {[%emt 0:04:19]} a6 {[%emt 0:03:28]} 10. h5 {[%emt 0:00:50]} h6 {[%emt 0:00:09]} 11. g3 {[%emt 0:03:45]} Bg4 {[%emt 0:02:39]} 12. f3 {[%emt 0:06:41]} Bd7 {[%emt 0:02:48]} 13. Ne2 {[%emt 0:08:17]} O-O-O $11 {[%emt 0:03:29]} 14. Bh3 {[%emt 0:04:59]} Bxh3 {[%emt 0:03:15]} 15. Rxh3 {[%emt 0:01:52]} Rd7 {[%emt 0:11:20]} 16. Rhh1 {[%emt 0:01:02]} Rhd8 {[%emt 0:00:37]} 17. Bc3 {[%emt 0:00:57]} Bxc3 {[%emt 0:05:14]} 18. Nxc3 {[%emt 0:05:49]} Rxd1+ {[%emt 0:02:16]} 19. Rxd1 {[%emt 0:03:14]} Rxd1+ {[%emt 0:03:07]} 20. Kxd1 {[%emt 0:01:48]} Nd4 {[%emt 0:10:31]} 21. f4 {[%emt 0:02:53]} f5 {[%emt 0:02:25]} 22. Nd5 {[%emt 0:02:49]} Kd7 {[%emt 0:00:18]} 23. Ne3 {[%emt 0:00:33]} Ke6 {[%emt 0:04:35]} 24. c3 {[%emt 0:02:37]} Nc6 {[%emt 0:05:22]} 25. Ke2 {[%emt 0:00:26]} Nb8 {[%emt 0:01:02]} 26. g4 {[%emt 0:12:04]} fxg4 {[%emt 0:00:14]} 27. Nxg4 {[%emt 0:00:41]} Nd7 {[%emt 0:00:33]} 28. Nxh6 {[%emt 0:03:43]} Nf6 {[%emt 0:00:32]} 29. Kf3 {[%emt 0:02:45]} Nxh5 {[%emt 0:00:06]} 30. Ng4 {[%emt 0:00:42]} Nf6 {[%emt 0:04:30]} 31. c4 {[%emt 0:06:29]} Nxg4 {[%emt 0:01:38]} 32. Kxg4 {[%emt 0:00:24]} Kf6 {[%emt 0:01:08]} 33. b4 {[%emt 0:08:43] Ke5} 1/2-1/2